fUST/lending_fUST_20250825
["ID","MTS","AMOUNT","RATE_DAILY","PERIOD"]
[381134846,1756065059571,-1574.51,0.00049863,120]
[381134847,1756065059581,-480.0,0.00049863,120]
[381134848,1756065059591,-738.56,0.00049863,120]
[381134849,1756065059600,-1287.76,0.00049863,120]
[381134850,1756065059609,-480.0,0.00049863,120]
[381134851,1756065059619,-916.07,0.00049863,120]
[381134852,1756065059628,-480.0,0.00049863,120]
[381134853,1756065059637,-1296.83,0.00049863,120]
[381134854,1756065059647,-480.0,0.00049863,30]
[381134855,1756065059656,-480.0,0.00049863,120]
[381134856,1756065059666,-480.0,0.00049863,120]
[381134858,1756065059675,-480.0,0.00049863,120]
[381134860,1756065059684,-480.0,0.00049863,120]
[381134862,1756065059693,-480.0,0.00049863,120]
[381134864,1756065059703,-480.0,0.00049863,120]
[381134866,1756065059712,-480.0,0.00049863,120]
[381134868,1756065059721,-628.37,0.00049863,120]
[381134870,1756065059730,-912.18061036,0.00049863,120]
[381134872,1756065059739,-480.0,0.00049863,120]
[381134874,1756065059748,-1236.53767906,0.00049863,120]
[381134886,1756065059849,-150.0,0.00041973,2]
[381134888,1756065059858,-264.95232094,0.00049863,120]
[381134890,1756065059868,-488.05,0.00049863,120]
[381134892,1756065059877,-480.0,0.00049863,120]
[381134894,1756065059886,-480.0,0.00049863,120]
[381134896,1756065059895,-1765.2,0.00049863,120]
[381134898,1756065059905,-480.0,0.00049863,7]
[381134900,1756065059914,-480.0,0.00049863,120]
[381134902,1756065059923,-247.19767908,0.00049863,120]
[381134905,1756065059936,-232.80232092,0.00049863,120]
[381134907,1756065059945,-480.0,0.00049863,120]
[381134909,1756065059956,-919.51,0.00049863,120]
[381134911,1756065059965,-2203.2,0.00049863,120]
[381134913,1756065059974,-1343.9,0.00049863,120]
[381134915,1756065059983,-480.0,0.00049863,120]
[381134917,1756065059992,-483.7,0.00049863,120]
[381134919,1756065060002,-480.0,0.00049863,120]
[381134921,1756065060011,-414.04340869,0.00049863,120]
[381134923,1756065060021,-480.0,0.00049863,120]
[381134925,1756065060030,-480.0,0.00049863,120]
[381134927,1756065060040,-1743.94,0.00049863,120]
[381134929,1756065060049,-480.0,0.00049863,120]
[381134931,1756065060059,-480.0,0.00049863,30]
[381134933,1756065060075,-480.0,0.00049863,120]
[381134935,1756065060084,-480.0,0.00049863,120]
[381134937,1756065060094,-480.0,0.00049863,120]
[381134939,1756065060104,-480.0,0.00049863,120]
[381134941,1756065060115,-633.19,0.00049863,120]
[381134943,1756065060124,-707.21,0.00049863,120]
[381134945,1756065060133,-480.0,0.00049863,120]
[381134947,1756065060143,-514.28,0.00049863,120]
[381134949,1756065060153,-480.0,0.00049863,120]
[381134951,1756065060163,-480.0,0.00049863,120]
[381134953,1756065060172,-480.0,0.00049863,120]
[381134955,1756065060182,-480.0,0.00049863,120]
[381134957,1756065060191,-1343.31,0.00049863,120]
[381134959,1756065060200,-480.0,0.00049863,120]
[381134961,1756065060210,-480.0,0.00049863,120]
[381134963,1756065060219,-480.0,0.00049863,120]
[381134965,1756065060230,-480.0,0.00049863,120]
[381134967,1756065060240,-480.0,0.00049863,120]
[381134969,1756065060249,-480.0,0.00049863,120]
[381134971,1756065060258,-480.0,0.00049863,120]
[381134973,1756065060267,-480.0,0.00049863,120]
[381134975,1756065060277,-445.0201151,0.00049863,120]
[381134976,1756065060291,-34.9798849,0.00049863,120]
[381134977,1756065060300,-482.20110595,0.00049863,120]
[381134978,1756065060310,-480.0,0.00049863,120]
[381134979,1756065060319,-816.47,0.00049863,120]
[381134980,1756065060330,-480.0,0.00049863,120]
[381134981,1756065060339,-480.0,0.00049863,120]
[381134982,1756065060349,-480.0,0.00049863,120]
[381134983,1756065060358,-480.0,0.00049863,120]
[381134984,1756065060367,-480.0,0.00049863,120]
[381134985,1756065060377,-480.0,0.00049863,120]
[381134986,1756065060387,-480.0,0.00049863,120]
[381134987,1756065060397,-480.0,0.00049863,120]
[381134988,1756065060407,-480.0,0.00049863,120]
[381134989,1756065060416,-644.43,0.00049863,120]
[381134990,1756065060426,-1200.19,0.00049863,120]
[381134991,1756065060435,-480.0,0.00049863,120]
[381134992,1756065060444,-480.0,0.00049863,120]
[381134993,1756065060453,-332.10485045,0.00049863,120]
[381134994,1756065060463,-722.57,0.00049863,120]
[381134995,1756065060472,-480.0,0.00049863,120]
[381134996,1756065060482,-363.75182567,0.00049863,120]
[381134997,1756065060491,-480.0,0.00049863,120]
[381134998,1756065060501,-480.0,0.00049863,120]
[381134999,1756065060511,-480.0,0.00049863,120]
[381135000,1756065060520,-480.0,0.00049863,120]
[381135001,1756065060529,-1000.0,0.00049863,120]
[381135002,1756065060539,-480.0,0.00049863,120]
[381135003,1756065060548,-480.0,0.00049863,120]
[381135004,1756065060557,-480.0,0.00049863,120]
[381135005,1756065060567,-480.0,0.00049863,120]
[381135006,1756065060577,-480.0,0.00049863,120]
[381135007,1756065060587,-1008.65,0.00049863,120]
[381135008,1756065060596,-519.14,0.00049863,120]
[381135009,1756065060606,-480.0,0.00049863,120]
[381135010,1756065060616,-988.76,0.00049863,120]
[381135011,1756065060625,-480.0,0.00049863,90]
[381135012,1756065060635,-868.89,0.00049863,120]
[381135013,1756065060645,-480.0,0.00049863,120]
[381135014,1756065060655,-480.0,0.00049863,120]
[381135015,1756065060664,-627.13,0.00049863,120]
[381135016,1756065060673,-480.0,0.00049863,120]
[381135017,1756065060683,-828.06,0.00049863,120]
[381135018,1756065060692,-480.0,0.00049863,120]
[381135019,1756065060702,-981.17,0.00049863,120]
[381135020,1756065060711,-571.47,0.00049863,120]
[381135021,1756065060721,-480.0,0.00049863,120]
[381135022,1756065060730,-480.0,0.00049863,120]
[381135023,1756065060739,-480.0,0.00049863,120]
[381135024,1756065060749,-480.0,0.00049863,120]
[381135025,1756065060758,-480.0,0.00049863,120]
[381135026,1756065060768,-678.04,0.00049863,120]
[381135027,1756065060778,-1537.0,0.00049863,120]
[381135028,1756065060787,-480.0,0.00049863,120]
[381135029,1756065060798,-480.0,0.00049863,120]
[381135030,1756065060807,-2074.92,0.00049863,120]
[381135031,1756065060817,-480.0,0.00049863,120]
[381135032,1756065060829,-1862.88,0.00049863,120]
[381135033,1756065060839,-516.35,0.00049863,120]
[381135034,1756065060849,-1716.85,0.00049863,120]
[381135035,1756065060858,-1821.19,0.00049863,120]
[381135036,1756065060867,-480.0,0.00049863,120]
[381135037,1756065060876,-442.80233303,0.00049863,120]
[381135038,1756065061496,-517.57280667,0.00030899,2]
[381135039,1756065061508,-258.67234176,0.00030899,2]
[381135040,1756065061520,-1081.34826634,0.00030899,2]
[381135041,1756065061529,-1857.59341477,0.00030899,2]
[381135042,1756065061539,-1857.59341477,0.00030899,2]
[381135043,1756065061549,-1857.59341477,0.00030899,2]
[381135044,1756065061558,-1857.59341477,0.00030899,2]
[381135045,1756065061568,-1857.59341477,0.00030899,2]
[381135046,1756065061582,-1857.59341477,0.00030899,2]
[381135047,1756065061592,-1857.59341477,0.00030899,2]
[381135048,1756065061602,-1857.59341477,0.00030899,2]
[381135049,1756065061612,-1857.59341477,0.00030899,2]
[381135050,1756065061621,-1857.59341477,0.00030899,2]
[381135051,1756065061631,-1857.59341477,0.00030899,2]
[381135052,1756065061641,-1857.59341477,0.00030899,2]
[381135053,1756065061652,-1857.59341477,0.00030899,2]
[381135054,1756065061661,-1857.59341477,0.00030899,2]
[381135055,1756065061671,-1857.59341477,0.00030899,2]
[381135056,1756065061681,-1857.59341477,0.00030899,2]
[381135057,1756065061690,-1857.59341477,0.00030899,2]
[381135058,1756065061699,-1857.59341477,0.00030899,2]
[381135059,1756065061709,-1857.59341477,0.00030899,2]
[381135060,1756065061718,-166.13416733,0.00049476,30]
[381135061,1756065061729,-480.0,0.00049589,120]
[381135062,1756065061739,-480.0,0.00049589,120]
[381135063,1756065061748,-571.93,0.00049863,120]
[381135064,1756065061758,-689.79,0.00049863,120]
[381135065,1756065061768,-667.32,0.00049863,120]
[381135066,1756065061777,-480.0,0.00049863,120]
[381135067,1756065061787,-480.0,0.00049863,120]
[381135068,1756065061797,-480.0,0.00049863,120]
[381135069,1756065061806,-321.12639818,0.00049863,120]
[381135070,1756065061816,-480.0,0.00049863,120]
[381135071,1756065061827,-2547.8,0.00049863,120]
[381135072,1756065061836,-545.82,0.00049863,120]
[381135073,1756065061845,-550.78588717,0.00049863,120]
[381135074,1756065061856,-480.0,0.00049863,120]
[381135075,1756065061865,-480.0,0.00049863,120]
[381135076,1756065061876,-304.32456324,0.00049863,120]
[381135077,1756065061886,-520.63,0.00049863,120]
[381135078,1756065061895,-480.0,0.00049863,120]
[381135079,1756065061905,-786.22,0.00049863,120]
[381135080,1756065061915,-480.0,0.00049863,120]
[381135081,1756065061925,-480.0,0.00049863,120]
[381135082,1756065061934,-480.0,0.00049863,120]
[381135083,1756065061944,-480.0,0.00049863,120]
[381135084,1756065061953,-823.03,0.00049863,120]
[381135085,1756065061962,-480.0,0.00049863,120]
[381135086,1756065061972,-793.94,0.00049863,120]
[381135087,1756065061981,-613.43,0.00049863,120]
[381135088,1756065062153,-480.0,0.00049863,120]
[381135089,1756065062169,-480.0,0.00049863,120]
[381135090,1756065062188,-480.0,0.00049863,120]
[381135091,1756065062207,-506.59,0.00049863,120]
[381135092,1756065062229,-878.05,0.00049863,120]
[381135093,1756065062249,-480.0,0.00049863,120]
[381135094,1756065062269,-77.45583711,0.00049863,120]
[381135095,1756065062291,-402.54416289,0.00049863,120]
[381135096,1756065062301,-1173.11,0.00049863,120]
[381135097,1756065062311,-4528.7,0.00049863,120]
[381135098,1756065062321,-480.0,0.00049863,120]
[381135099,1756065062333,-271.76759174,0.00049863,120]
[381135100,1756065062441,-530.12,0.00049589,120]
[381135101,1756065062451,-1482.85240826,0.00049863,120]
[381135102,1756065062460,-480.0,0.00049863,120]
[381135103,1756065062469,-480.0,0.00049863,120]
[381135104,1756065062479,-480.0,0.00049863,120]
[381135105,1756065062489,-564.11,0.00049863,120]
[381135106,1756065062498,-644.18,0.00049863,120]
[381135107,1756065062509,-480.0,0.00049863,120]
[381135108,1756065062518,-480.0,0.00049863,120]
[381135109,1756065062528,-480.0,0.00049863,120]
[381135110,1756065062538,-480.0,0.00049863,120]
[381135111,1756065062547,-590.3,0.00049863,120]
[381135112,1756065062557,-480.0,0.00049863,120]
[381135113,1756065062566,-480.0,0.00049863,120]
[381135114,1756065062578,-2256.55,0.00049863,120]
[381135115,1756065062588,-480.0,0.00049863,120]
[381135116,1756065062597,-480.0,0.00049863,120]
[381135117,1756065062606,-761.25,0.00049863,120]
[381135118,1756065062615,-1640.45,0.00049863,120]
[381135119,1756065062624,-480.0,0.00049863,120]
[381135120,1756065062634,-480.0,0.00049863,120]
[381135121,1756065062643,-480.0,0.00049863,120]
[381135122,1756065062653,-480.0,0.00049863,120]
[381135123,1756065062662,-1127.19,0.00049863,120]
[381135124,1756065062672,-480.0,0.00049863,120]
[381135125,1756065062682,-666.3,0.00049863,120]
[381135126,1756065062693,-807.6,0.00049863,120]
[381135127,1756065062702,-480.0,0.00049863,120]
[381135128,1756065062712,-485.0,0.00049863,120]
[381135129,1756065062722,-480.0,0.00049863,120]
[381135130,1756065062732,-307.11123642,0.00049863,120]
[381135131,1756065062745,-172.88876358,0.00049863,120]
[381135132,1756065062755,-480.0,0.00049863,120]
[381135133,1756065062764,-491.34395462,0.00049863,120]
[381135134,1756065062792,-480.0,0.00049589,120]
[381135135,1756065062802,-26.10604538,0.00049863,120]
[381135136,1756065062812,-1680.19,0.00049863,120]
[381135137,1756065062822,-2562.28,0.00049863,120]
[381135138,1756065062833,-1275.31,0.00049863,120]
[381135139,1756065062843,-480.0,0.00049863,120]
[381135140,1756065062852,-480.0,0.00049863,120]
[381135141,1756065062862,-503.05,0.00049863,120]
[381135142,1756065062871,-480.0,0.00049863,120]
[381135143,1756065062880,-743.05,0.00049863,120]
[381135144,1756065062890,-480.0,0.00049863,120]
[381135145,1756065062900,-519.9936,0.00049863,120]
[381135146,1756065062909,-585.11,0.00049863,120]
[381135147,1756065062919,-655.28,0.00049863,120]
[381135148,1756065062929,-480.0,0.00049863,120]
[381135149,1756065062939,-480.0,0.00049863,120]
[381135150,1756065062948,-480.0,0.00049863,120]
[381135151,1756065062958,-480.0,0.00049863,120]
[381135152,1756065062968,-480.0,0.00049863,120]
[381135153,1756065062977,-2049.19,0.00049863,120]
[381135154,1756065062987,-480.0,0.00049863,120]
[381135155,1756065062996,-480.0,0.00049863,120]
[381135156,1756065063006,-519.94959484,0.00049863,120]
[381135157,1756065063015,-532.75,0.00049863,120]
[381135158,1756065063025,-480.0,0.00049863,120]
[381135159,1756065063035,-578.05,0.00049863,120]
[381135160,1756065063045,-480.0,0.00049863,120]
[381135161,1756065063056,-480.0,0.00049863,120]
[381135162,1756065063070,-486.76,0.00049863,120]
[381135163,1756065063084,-628.16,0.00049863,120]
[381135164,1756065063094,-480.0,0.00049863,120]
[381135165,1756065063106,-480.0,0.00049863,120]
[381135166,1756065063117,-640.78,0.00049863,120]
[381135167,1756065063128,-2795.76,0.00049863,120]
[381135168,1756065063138,-480.0,0.00049863,120]
[381135169,1756065063150,-880.95,0.00049863,120]
[381135170,1756065063159,-1651.72,0.00049863,120]
[381135171,1756065063170,-504.31,0.00049863,120]
[381135172,1756065063179,-873.66,0.00049863,120]
[381135173,1756065063189,-480.0,0.00049863,120]
[381135174,1756065063200,-480.0,0.00049863,120]
[381135175,1756065063210,-480.0,0.00049863,120]
[381135176,1756065063220,-1654.07,0.00049863,120]
[381135177,1756065063231,-4637.55,0.00049863,120]
[381135178,1756065063240,-683.73,0.00049863,120]
[381135179,1756065063250,-1070.69,0.00049863,120]
[381135180,1756065063261,-480.0,0.00049863,120]
[381135181,1756065063271,-579.09,0.00049863,120]
[381135182,1756065063282,-480.0,0.00049863,120]
[381135183,1756065063292,-480.0,0.00049863,120]
[381135184,1756065063302,-480.0,0.00049863,120]
[381135185,1756065063312,-1012.6,0.00049863,120]
[381135186,1756065063323,-926.91,0.00049863,120]
[381135187,1756065063334,-1193.57,0.00049863,120]
[381135188,1756065063344,-480.0,0.00049863,120]
[381135189,1756065063354,-480.0,0.00049863,120]
[381135190,1756065063365,-939.84,0.00049863,120]
[381135191,1756065063375,-480.0,0.00049863,120]
[381135192,1756065063386,-480.0,0.00049863,120]
[381135193,1756065063396,-480.0,0.00049863,120]
[381135194,1756065063406,-480.0,0.00049863,120]
[381135195,1756065063416,-598.63,0.00049863,120]
[381135196,1756065063426,-480.0,0.00049863,120]
[381135197,1756065063436,-544.45,0.00049863,120]
[381135198,1756065063446,-480.0,0.00049863,120]
[381135199,1756065063456,-480.0,0.00049863,120]
[381135200,1756065063465,-480.0,0.00049863,120]
[381135201,1756065063475,-1783.48,0.00049863,120]
[381135202,1756065063485,-480.0,0.00049863,120]
[381135203,1756065063495,-480.0,0.00049863,120]
[381135204,1756065063504,-662.2,0.00049863,7]
[381135205,1756065063514,-266.7588254,0.00049863,120]
[381135206,1756065063523,-980.3,0.00049863,120]
[381135207,1756065063533,-3505.12,0.00049863,120]
[381135208,1756065063543,-1175.96,0.00049863,120]
[381135209,1756065063552,-861.04,0.00049863,120]
[381135210,1756065063562,-599.13,0.00049863,120]
[381135211,1756065063572,-336.61966641,0.00049863,120]
[381135212,1756065063582,-480.0,0.00049863,120]
[381135213,1756065063592,-965.54,0.00049863,120]
[381135214,1756065063602,-480.0,0.00049863,120]
[381135215,1756065063612,-480.0,0.00049863,120]
[381135216,1756065063622,-480.0,0.00049863,120]
[381135217,1756065063632,-3415.41,0.00049863,120]
[381135218,1756065063641,-736.89,0.00049863,120]
[381135219,1756065063651,-480.0,0.00049863,120]
[381135220,1756065063660,-480.0,0.00049863,120]
[381135221,1756065063670,-480.0,0.00049863,120]
[381135222,1756065063679,-480.0,0.00049863,120]
[381135223,1756065063689,-2215.23,0.00049863,120]
[381135224,1756065063698,-480.0,0.00049863,120]
[381135225,1756065063708,-485.26,0.00049863,120]
[381135226,1756065063717,-2138.96,0.00049863,120]
[381135227,1756065063726,-533.2188274,0.00049863,120]
[381135228,1756065063736,-480.0,0.00049863,120]
[381135229,1756065063746,-717.05,0.00049863,120]
[381135230,1756065063755,-480.0,0.00049863,120]
[381135231,1756065063765,-480.0,0.00049863,120]
[381135232,1756065063774,-480.0,0.00049863,120]
[381135233,1756065063783,-480.0,0.00049863,120]
[381135234,1756065063793,-480.0,0.00049863,120]
[381135235,1756065063803,-816.94,0.00049863,120]
[381135236,1756065063812,-715.65,0.00049863,120]
[381135237,1756065063822,-480.0,0.00049863,120]
[381135238,1756065063832,-896.41,0.00049863,120]
[381135239,1756065063842,-678.58,0.00049863,120]
[381135240,1756065063851,-327.83045658,0.00049863,120]
[381135243,1756065108129,529.17068775,0.00027,3]
[381135244,1756065109484,203.39,0.0002685,7]
[381135246,1756065188770,184.08337164,0.00027472,2]
[381135247,1756065196872,-959.92455954,0.0002757,2]
[381135248,1756065196895,-203.55052834,0.0002757,2]
[381135249,1756065196920,-1566.054757,0.00027572,2]
[381135250,1756065196943,-160.0,0.00027572,2]
[381135251,1756065223382,1839.5793275,0.0002757,2]
[381135252,1756065285210,279.591496,0.00013699,2]
[381135253,1756065285724,279.591496,0.00020187,2]
[381135254,1756065285782,279.591496,0.00026676,2]
[381135255,1756065456580,1000.0,0.00027576,30]
[381135256,1756065477840,433.031135,0.00027576,2]
[381135283,1756065537290,9947.3380031,0.0002756,2]
[381135285,1756065761830,380.0,0.00027671,2]
[381135288,1756066117714,10000.0,0.0002764,2]
[381135289,1756066211474,783.027378,0.00027602,2]
[381135434,1756066234514,-468.6273283,0.00027971,2]
[381135435,1756066234524,-567.04052087,0.00028219,30]
[381135436,1756066234536,-2621.62605603,0.00028219,30]
[381135437,1756066234546,-623.97857579,0.00028432,15]
[381135438,1756066234555,-1200.0,0.00028898,2]
[381135439,1756066234565,-1200.0,0.00028899,2]
[381135440,1756066234575,-300.0,0.00028899,2]
[381135441,1756066234584,-300.0,0.00028899,2]
[381135442,1756066234593,-300.0,0.00028899,2]
[381135443,1756066234604,-300.0,0.00028899,2]
[381135444,1756066234614,-6981.71474926,0.000289,2]
[381135445,1756066234641,-43018.28525074,0.000289,2]
[381135446,1756066234651,-165.79791246,0.000289,2]
[381135447,1756066234661,-178.22006875,0.000289,2]
[381135448,1756066234670,-157.07725497,0.000289,2]
[381135449,1756066234680,-158.22272979,0.000289,2]
[381135450,1756066234690,-500.0,0.000289,2]
[381135451,1756066234700,-317.49925833,0.000289,2]
[381135452,1756066234709,-500.0,0.000289,2]
[381135453,1756066234718,-506.92384756,0.000289,2]
[381135454,1756066234727,-158.75044026,0.000289,2]
[381135455,1756066234737,-500.0,0.000289,2]
[381135456,1756066234746,-500.0,0.000289,2]
[381135457,1756066234755,-500.0,0.000289,2]
[381135458,1756066234765,-500.0,0.000289,2]
[381135459,1756066234774,-500.0,0.000289,2]
[381135460,1756066234784,-500.0,0.00029,5]
[381135461,1756066234793,-500.0,0.00029,5]
[381135462,1756066234803,-338.45478718,0.00029548,5]
[381135463,1756066234813,-199.0,0.000302,120]
[381135464,1756066234823,-199.0,0.000303,120]
[381135465,1756066234833,-199.0,0.000304,120]
[381135466,1756066234843,-199.0,0.000305,120]
[381135467,1756066234856,-500.0,0.00030557,2]
[381135468,1756066234865,-500.0,0.00030557,2]
[381135469,1756066234875,-440.0,0.00030557,2]
[381135470,1756066234885,-199.0,0.000306,120]
[381135471,1756066234894,-199.0,0.000306,120]
[381135472,1756066234904,-199.0,0.000307,120]
[381135473,1756066234914,-199.0,0.000307,120]
[381135474,1756066234924,-199.0,0.000308,120]
[381135475,1756066234933,-199.0,0.000308,120]
[381135476,1756066234943,-3000.0,0.000309,2]
[381135477,1756066234960,-3000.0,0.000309,2]
[381135478,1756066234969,-3000.0,0.000309,2]
[381135479,1756066234978,-1050.8450989,0.00030901,4]
[381135480,1756066234988,-155.0,0.00031,120]
[381135481,1756066234997,-433.031135,0.00031001,2]
[381135482,1756066235006,-1614.0,0.00031182,3]
[381135483,1756066235016,-420.0,0.00031182,2]
[381135484,1756066235025,-420.0,0.00031182,3]
[381135485,1756066235034,-217.07852671,0.00031273,2]
[381135486,1756066235044,-232.42214577,0.00031273,2]
[381135487,1756066235053,-160.0,0.00031273,2]
[381135488,1756066235063,-160.0,0.00031273,2]
[381135489,1756066235072,-376.22310801,0.00031278,2]
[381135490,1756066235081,-215.99145658,0.00031278,2]
[381135491,1756066235090,-967.0,0.00031315,3]
[381135492,1756066235101,-160.0,0.0003133,2]
[381135493,1756066235110,-160.0,0.0003133,2]
[381135494,1756066235119,-279.591496,0.00033165,2]
[381135495,1756066235128,-500.0,0.00033475,5]
[381135496,1756066235137,-200.0,0.00033475,5]
[381135497,1756066235146,-500.0,0.00033475,5]
[381135498,1756066235155,-496.27896564,0.00033475,5]
[381135540,1756066238016,-160.0,0.00028897,2]
[381135541,1756066238025,-3.72103436,0.00033475,5]
[381135542,1756066238035,-500.0,0.00033475,5]
[381135543,1756066238045,-587.0,0.00033645,2]
[381135544,1756066238054,-200.0,0.0003399,120]
[381135545,1756066238063,-397.95830618,0.00034023,5]
[381135546,1756066238073,-1000.0,0.00034023,5]
[381135547,1756066238083,-1000.0,0.00034023,5]
[381135548,1756066238093,-200.0,0.0003416,5]
[381135549,1756066238105,-160.0,0.000344,2]
[381135550,1756066238115,-433.031135,0.00034426,2]
[381135551,1756066238125,-436.19286327,0.00034464,7]
[381135552,1756066238138,-436.14407711,0.00034464,7]
[381135553,1756066238147,-872.33694038,0.00034464,7]
[381135554,1756066238156,-872.33694038,0.00034464,7]
[381135555,1756066238166,-872.33694038,0.00034464,7]
[381135556,1756066238175,-872.33694038,0.00034464,7]
[381135557,1756066238185,-872.33694038,0.00034464,7]
[381135558,1756066238195,-872.33694038,0.00034464,7]
[381135559,1756066238204,-122.23428061,0.00034464,7]
[381135560,1756066238286,-750.10265977,0.00034464,7]
[381135561,1756066238296,-872.33694038,0.00034464,7]
[381135562,1756066238306,-872.33694038,0.00034464,7]
[381135563,1756066238316,-872.33694038,0.00034464,7]
[381135564,1756066238326,-872.33694038,0.00034464,7]
[381135565,1756066238335,-872.33694038,0.00034464,7]
[381135566,1756066238345,-529.80449935,0.00034464,7]
[381135567,1756066238370,-342.53244103,0.00034464,7]
[381135568,1756066238380,-872.33694038,0.00034464,7]
[381135569,1756066238389,-872.33694038,0.00034464,7]
[381135570,1756066238400,-872.33694038,0.00034464,7]
[381135571,1756066238410,-872.33694038,0.00034464,7]
[381135572,1756066238422,-2318.23724716,0.00034464,7]
[381135573,1756066238432,-2318.23724716,0.00034464,7]
[381135574,1756066238442,-2318.23724716,0.00034464,7]
[381135575,1756066238453,-2318.23724716,0.00034464,7]
[381135576,1756066238463,-2318.23724716,0.00034464,7]
[381135577,1756066238472,-2318.23724716,0.00034464,7]
[381135578,1756066238482,-2318.23724716,0.00034464,7]
[381135579,1756066238492,-2318.23724716,0.00034464,7]
[381135580,1756066238502,-2318.23724716,0.00034464,7]
[381135581,1756066238512,-2318.23724716,0.00034464,7]
[381135582,1756066238522,-2318.23724716,0.00034464,7]
[381135583,1756066238531,-844.67759735,0.00034464,7]
[381135584,1756066238541,-160.0,0.00034464,7]
[381135585,1756066238550,-376.22310801,0.00034464,7]
[381135586,1756066238560,-33195.8825131,0.00034465,2]
[381135587,1756066238569,-249.3,0.00034475,3]
[381135588,1756066238578,-747.92,0.00034475,3]
[381135589,1756066238588,-3988.76,0.00034477,3]
[381135590,1756066238598,-1994.38,0.00034477,3]
[381135591,1756066238608,-997.19,0.00034477,3]
[381135592,1756066238618,-498.59,0.00034477,3]
[381135593,1756066238627,-844.67759735,0.00034477,3]
[381135594,1756066238638,-160.0,0.00034477,3]
[381135595,1756066238647,-376.22310801,0.00034477,3]
[381135596,1756066238657,-33195.8825131,0.0003449,2]
[381135597,1756066238667,-500.0,0.00034494,120]
[381135598,1756066238676,-500.0,0.00034523,7]
[381135599,1756066238685,-151.38,0.000346,7]
[381135600,1756066238695,-260.0,0.00034948,2]
[381135601,1756066238704,-155.0,0.00035,120]
[381135602,1756066238713,-244.63343042,0.0003533,2]
[381135603,1756066238722,-360.0,0.00035496,2]
[381135604,1756066238731,-498.6,0.00035845,3]
[381135605,1756066238741,-7977.52,0.00035847,3]
[381135606,1756066238751,-3988.76,0.00035847,3]
[381135607,1756066238760,-1994.38,0.00035847,3]
[381135608,1756066238769,-997.18,0.00035847,3]
[381135609,1756066238779,-2879.74,0.000359,7]
[381135610,1756066238789,-500.0,0.00036138,120]
[381135611,1756066238799,-823.0,0.00036303,2]
[381135612,1756066238809,-433.031135,0.0003785,2]
[381135613,1756066238818,-761.18657138,0.000381,2]
[381135614,1756066238828,-33195.8825131,0.0003819,3]
[381135615,1756066238837,-844.67759735,0.0003819,3]
[381135616,1756066238846,-160.0,0.0003819,3]
[381135617,1756066238862,-5289.1,0.000382,14]
[381135618,1756066238872,-244.63343042,0.00038545,2]
[381135619,1756066238882,-155.0,0.00039,120]
[381135620,1756066238892,-1063.0,0.00039172,5]
[381135621,1756066238902,-279.591496,0.00039654,2]
[381135622,1756066238911,-236.33244,0.000405,120]
[381135623,1756066238921,-200.0,0.000405,120]
[381135624,1756066238930,-761.18657137,0.000409,2]
[381135625,1756066238939,-500.0,0.00041096,31]
[381135626,1756066238949,-311.23122387,0.00041096,31]
[381135627,1756066238958,-433.031135,0.00041275,2]